lending/lending_fUSD_20250808
["ID","MTS","AMOUNT","RATE_DAILY","PERIOD"]
[378000214,1754661044341,-892.92,0.00018999,2]
[378000215,1754661044350,-686.47,0.00018999,2]
[378000216,1754661044359,-400.0,0.00018999,2]
[378000217,1754661044369,-975.59,0.00018999,2]
[378000218,1754661044378,-1534.2,0.00018999,2]
[378000219,1754661044388,-1019.94,0.00018999,2]
[378000220,1754661044399,-798.69,0.00018999,2]
[378000221,1754661044408,-828.84,0.00018999,2]
[378000222,1754661044418,-400.0,0.00018999,2]
[378000223,1754661044432,-1197.94,0.00018999,2]
[378000224,1754661044441,-1299.28,0.00018999,2]
[378000225,1754661044450,-956.52,0.00018999,2]
[378000226,1754661044462,-1512.58,0.00018999,2]
[378000227,1754661044472,-1000.0,0.00018999,2]
[378000228,1754661044481,-921.25,0.00018999,2]
[378000229,1754661044490,-785.7,0.00018999,2]
[378000230,1754661044500,-854358.25159135,0.00019,2]
[378000231,1754661044526,-3169.39522416,0.00019,2]
[378000232,1754661044546,-7927.53522352,0.00019,2]
[378000233,1754661044559,-1410.41175853,0.00019,2]
[378000234,1754661044572,-23986.92921885,0.00019,2]
[378000235,1754661044583,-5821.59382798,0.00019,2]
[378000236,1754661044603,-9649.43024126,0.00019,2]
[378000237,1754661044614,-584.75,0.00019,2]
[378000238,1754661045093,-400.0,0.00018757,2]
[378000239,1754661045103,-4313.25,0.00019,2]
[378000240,1754661045115,-296.13443335,0.00019,2]
[378000241,1754661045131,-832.37000001,0.00019,2]
[378000242,1754661045142,-306.40191182,0.00019,2]
[378000243,1754661045154,-3192.00000001,0.00019,2]
[378000244,1754661045169,-5145.40242608,0.00019,2]
[378000245,1754661045190,-109855.37218964,0.00019,2]
[378000246,1754661045210,-1786.54597879,0.00019,2]
[378000247,1754661045222,-5187.58918371,0.00019,2]
[378000250,1754661046252,-400.0,0.00018757,2]
[378000251,1754661046262,-167.92055194,0.00018758,2]
[378000252,1754661046311,-232.07944806,0.00018758,2]
[378000253,1754661046320,-400.0,0.00018758,2]
[378000254,1754661046329,-246.07498998,0.00019,2]
[378000255,1754661046340,-251.253999,0.00019,2]
[378000256,1754661046351,-402.42133803,0.00019,2]
[378000257,1754661046540,-1007.96,0.00018757,2]
[378000258,1754661046550,-3276.69077206,0.000189,2]
[378000259,1754661046561,-371677.43254945,0.00019,2]
[378000260,1754661046573,-2256.50974557,0.00019,2]
[378000261,1754661046584,-509.73,0.00019,2]
[378000262,1754661046605,-337.82000013,0.00019,2]
[378000263,1754661046668,-310.9742,0.00019,2]
[378000264,1754661046680,-551.994769,0.00019,2]
[378000265,1754661046692,-58386.11330405,0.00019,2]
[378000266,1754661046703,-400.0,0.00019,2]
[378000267,1754661046772,-294.965,0.00019,2]
[378000268,1754661048000,2077.2430718,0.00030136,120]
[378000270,1754661109061,200.0,0.0003,120]
[378000271,1754661234503,277.59,0.00018003,2]
[378000272,1754661323174,461.27,0.00015068,2]
[378000273,1754661323309,461.27,0.00016665,2]
[378000274,1754661329013,250.0,0.00018,7]
[378000275,1754661429977,150.0,0.000149,2]
[378000276,1754661430365,150.0,0.0001608,2]
[378000277,1754661430804,150.0,0.0001727,2]
[378000278,1754661484537,250.0,0.00017945,2]
[378000279,1754661494223,400.0,0.00018,3]
[378000280,1754661505097,400.0,0.00018,3]
[378000282,1754661540139,154.43,0.00030137,120]
[378000283,1754661590673,196.35,0.00017931,2]
[378000284,1754661615572,522.0,0.00017116,2]
[378000286,1754661635966,243.04,0.00013699,2]
[378000287,1754661640642,166.43,0.00017887,2]
[378000289,1754661910608,150.0,0.00018,2]
[378000290,1754661911396,150.0,0.00018,2]
[378000291,1754661914435,150.0,0.00018,2]
[378000292,1754661918707,150.0,0.00018,2]
[378000293,1754661920592,150.0,0.00018,2]
[378000294,1754661960390,150.0,0.000149,2]
[378000295,1754661961053,150.0,0.0001608,2]
[378000296,1754661961445,150.0,0.0001727,2]
[378000298,1754662071549,1000.0,0.00017839,2]
[378000304,1754662161938,156.20409912,0.000178,7]
[378000314,1754662231621,-155.19,0.00018069,2]
[378000315,1754662231631,-269.01,0.00018072,2]
[378000316,1754662231736,-2230.99,0.00018072,2]
[378000317,1754662231746,-2500.0,0.00018103,2]
[378000318,1754662231755,-267.46074303,0.00018125,2]
[378000319,1754662231765,-584.43097947,0.00018131,2]
[378000321,1754662231851,-615.56902053,0.00018131,2]
[378000322,1754662231860,-3925.5,0.00018132,2]
[378000323,1754662231870,-39.24649662,0.00018134,2]
[378000324,1754662231912,-260.75350338,0.00018134,2]
[378000325,1754662231922,-86.24649662,0.000182,7]
[378000330,1754662231970,-153.75350338,0.000182,7]
[378000331,1754662231980,-461.27,0.00018261,2]
[378000333,1754662231990,-150.0,0.0001845,2]
[378000334,1754662232000,-196.35,0.00018603,2]
[378000335,1754662232010,-846.43902094,0.00018651,2]
[378000336,1754662232019,-533.52647568,0.00018657,2]
[378000337,1754662232031,-675.0,0.00018657,2]
[378000374,1754662237584,-1311.00543113,0.00018657,2]
[378000375,1754662237595,-198.0,0.00018719,2]
[378000376,1754662237605,-160.0,0.00018746,2]
[378000377,1754662237614,-256.8320093,0.00018756,2]
[378000378,1754662237623,-500.0,0.00018756,2]
[378000379,1754662237633,-828.23,0.00018756,2]
[378000380,1754662237642,-692.24,0.00018756,2]
[378000381,1754662237652,-863.09,0.00018756,2]
[378000382,1754662237663,-555.31,0.00018756,2]
[378000383,1754662237672,-688.82,0.00018756,2]
[378000384,1754662237682,-773.74,0.00018756,2]
[378000385,1754662237692,-1402.83,0.00018756,2]
[378000386,1754662237702,-500.0,0.00018756,2]
[378000387,1754662237711,-863.61,0.00018756,2]
[378000388,1754662237721,-445.54,0.00018756,2]
[378000389,1754662237730,-430.75,0.00018756,2]
[378000390,1754662237739,-965.96,0.00018756,2]
[378000391,1754662237749,-400.0,0.00018756,2]
[378000392,1754662237759,-613.96,0.00018756,2]
[378000393,1754662237768,-400.0,0.00018757,2]
[378000394,1754662237778,-400.0,0.00018757,2]
[378000395,1754662237787,-527.16850354,0.00018757,2]
[378000396,1754662237797,-565.26,0.00018757,2]
[378000397,1754662237806,-400.0,0.00018757,2]
[378000399,1754662237815,-458.95,0.00018757,2]
[378000401,1754662237824,-432.45,0.00018757,2]
[378000403,1754662237834,-400.0,0.00018757,2]
[378000406,1754662237843,-465.44,0.00018757,2]
[378000408,1754662237852,-400.0,0.00018757,2]
[378000410,1754662237862,-523.74,0.00018757,2]
[378000412,1754662237871,-682.11,0.00018757,2]
[378000413,1754662237880,-301.83320959,0.00018757,2]
[378000416,1754662237893,-98.16679041,0.00018757,2]
[378000417,1754662237902,-400.0,0.00018757,2]
[378000419,1754662237915,-400.0,0.00018757,2]
[378000421,1754662237924,-203.23599342,0.00018757,2]
[378000423,1754662237934,-400.0,0.00018757,2]
[378000425,1754662237943,-486.03395796,0.00018757,2]
[378000427,1754662237952,-43.17715821,0.00018757,2]
[378000430,1754662237965,-448.56284179,0.00018757,2]
[378000432,1754662237974,-462.05623821,0.00018757,2]
[378000434,1754662237986,-156.30376179,0.00018757,2]
[378000436,1754662237995,-400.0,0.00018757,2]
[378000438,1754662238004,-400.0,0.00018757,2]
[378000440,1754662238013,-406.23,0.00018757,2]
[378000442,1754662238022,-400.0,0.00018757,2]
[378000444,1754662238035,-496.35,0.00018757,2]
[378000447,1754662238044,-588.71,0.00018757,2]
[378000449,1754662238054,-400.0,0.00018757,2]
[378000451,1754662238063,-400.0,0.00018757,2]
[378000452,1754662238072,-364.21968821,0.00018757,2]
[378000456,1754662238092,-116.11031179,0.00018757,2]
[378000458,1754662238102,-255.88968826,0.00018757,2]
[378000461,1754662238127,-144.11031174,0.00018757,2]
[378000463,1754662238136,-400.0,0.00018757,2]
[378000465,1754662238146,-400.0,0.00018757,2]
[378000467,1754662238155,-400.0,0.00018757,2]
[378000470,1754662238168,-400.0,0.00018757,2]
[378000471,1754662238178,-498.85,0.00018757,2]
[378000473,1754662238187,-407.06,0.00018757,2]
[378000475,1754662238196,-400.0,0.00018757,2]
[378000478,1754662238206,-400.0,0.00018757,2]
[378000479,1754662238215,-400.0,0.00018757,2]
[378000482,1754662238224,-400.0,0.00018757,2]
[378000484,1754662238233,-400.0,0.00018757,2]
[378000486,1754662238242,-4.32870826,0.00018757,2]
[378000530,1754662239485,-503.3247954,0.00018757,2]
[378000531,1754662239500,-10.04412906,0.00018757,2]
[378000532,1754662239509,-613.41,0.00018757,2]
[378000533,1754662239519,-400.0,0.00018757,2]
[378000534,1754662239530,-420.06,0.00018757,2]
[378000535,1754662239539,-521.88,0.00018757,2]
[378000536,1754662239549,-400.0,0.00018757,2]
[378000537,1754662239559,-400.0,0.00018757,2]
[378000538,1754662239569,-400.0,0.00018757,2]
[378000539,1754662239578,-494.9,0.00018757,2]
[378000540,1754662239588,-400.0,0.00018757,2]
[378000541,1754662239598,-400.0,0.00018757,2]
[378000542,1754662239607,-650.12,0.00018757,2]
[378000543,1754662239616,-437.71,0.00018757,2]
[378000544,1754662239626,-169.2249406,0.00018757,2]
[378000545,1754662239638,-230.7750594,0.00018757,2]
[378000546,1754662239647,-40.20157352,0.00018757,2]
[378000547,1754662239662,-359.79842648,0.00018757,2]
[378000548,1754662239672,-400.0,0.00018757,2]
[378000549,1754662239683,-400.0,0.00018757,2]
[378000550,1754662239692,-455.87,0.00018757,2]
[378000551,1754662239702,-449.27,0.00018757,2]
[378000552,1754662239712,-400.0,0.00018757,2]
[378000553,1754662239722,-400.0,0.00018757,2]
[378000554,1754662239732,-400.0,0.00018757,2]
[378000555,1754662239742,-400.0,0.00018757,2]
[378000556,1754662239751,-497.64,0.00018757,2]
[378000557,1754662239760,-462.17,0.00018757,2]
[378000558,1754662239769,-400.0,0.00018757,2]
[378000559,1754662239778,-400.0,0.00018757,2]
[378000560,1754662239788,-460.9,0.00018757,2]
[378000561,1754662239797,-419.66,0.00018757,2]
[378000562,1754662239807,-400.0,0.00018757,2]
[378000563,1754662239816,-400.0,0.00018757,2]
[378000564,1754662239825,-400.0,0.00018757,2]
[378000565,1754662239835,-400.0,0.00018757,2]
[378000566,1754662239845,-470.8,0.00018757,2]
[378000567,1754662239854,-400.0,0.00018757,2]
[378000568,1754662239863,-400.0,0.00018757,2]
[378000569,1754662239873,-400.0,0.00018757,2]
[378000570,1754662239882,-400.0,0.00018757,2]
[378000571,1754662239891,-400.0,0.00018757,2]
[378000572,1754662239901,-649.48,0.00018757,2]
[378000573,1754662239912,-400.0,0.00018757,2]
[378000574,1754662239921,-400.0,0.00018757,2]
[378000575,1754662239931,-400.0,0.00018757,2]
[378000577,1754662239941,-400.0,0.00018757,2]
[378000579,1754662239950,-1024.02,0.00018757,2]
[378000580,1754662239959,-400.0,0.00018757,2]
[378000581,1754662239968,-400.0,0.00018757,2]
[378000582,1754662239977,-700.81,0.00018757,2]
[378000583,1754662239989,-400.0,0.00018757,2]
[378000584,1754662239998,-400.0,0.00018757,2]
[378000585,1754662240008,-667.15,0.00018757,2]
[378000586,1754662240017,-400.0,0.00018757,2]
[378000587,1754662240026,-665.93,0.00018757,2]
[378000588,1754662240036,-400.0,0.00018757,2]
[378000589,1754662240045,-400.0,0.00018757,2]
[378000590,1754662240054,-400.0,0.00018757,2]
[378000591,1754662240063,-648.65,0.00018757,2]
[378000592,1754662240072,-414.97,0.00018757,2]
[378000593,1754662240082,-400.0,0.00018757,2]
[378000594,1754662240095,-400.0,0.00018757,2]
[378000595,1754662240114,-400.0,0.00018757,2]
[378000596,1754662240123,-400.0,0.00018757,2]
[378000597,1754662240133,-504.89,0.00018757,2]
[378000598,1754662240142,-400.0,0.00018757,2]
[378000599,1754662240151,-400.0,0.00018757,2]
[378000600,1754662240162,-400.0,0.00018757,2]
[378000601,1754662240171,-400.0,0.00018757,2]
[378000602,1754662240181,-400.0,0.00018757,2]
[378000603,1754662240191,-407.81,0.00018757,2]
[378000604,1754662240200,-400.0,0.00018757,2]
[378000605,1754662240209,-400.0,0.00018757,2]
[378000606,1754662240218,-427.46,0.00018757,2]
[378000607,1754662240228,-400.0,0.00018757,2]
[378000608,1754662240239,-400.0,0.00018757,2]
[378000609,1754662240253,-400.0,0.00018757,2]
[378000610,1754662240262,-415.12,0.00018757,2]
[378000611,1754662240272,-572.29,0.00018757,2]
[378000612,1754662240282,-400.0,0.00018757,2]
[378000613,1754662240291,-400.0,0.00018757,2]
[378000614,1754662240300,-400.0,0.00018757,2]
[378000615,1754662240310,-821.37,0.00018757,2]
[378000616,1754662240320,-562.84,0.00018757,2]
[378000617,1754662240330,-400.0,0.00018757,2]
[378000618,1754662240340,-400.0,0.00018757,2]
[378000619,1754662240349,-677.99,0.00018757,2]
[378000620,1754662240358,-400.0,0.00018757,2]
[378000621,1754662240368,-608.52,0.00018757,2]
[378000622,1754662240377,-444.98,0.00018757,2]
[378000623,1754662240387,-413.86,0.00018757,2]
[378000624,1754662240396,-400.0,0.00018757,2]
[378000625,1754662240406,-426.59,0.00018757,2]
[378000626,1754662240422,-543.0,0.00018757,2]
[378000627,1754662240431,-400.0,0.00018757,2]
[378000628,1754662240440,-441.08,0.00018757,2]
[378000629,1754662240450,-643.37,0.00018757,2]
[378000630,1754662240461,-400.0,0.00018757,2]
[378000631,1754662240470,-424.07,0.00018757,2]
[378000632,1754662240480,-400.0,0.00018757,2]
[378000633,1754662240492,-623.96,0.00018757,2]
[378000634,1754662240501,-485.82,0.00018757,2]
[378000635,1754662240518,-486.31,0.00018757,2]
[378000636,1754662240529,-400.0,0.00018757,2]
[378000637,1754662240538,-519.26,0.00018757,2]
[378000638,1754662240547,-400.0,0.00018757,2]
[378000639,1754662240556,-400.0,0.00018757,2]
[378000640,1754662240567,-561.47,0.00018757,2]
[378000641,1754662240576,-400.0,0.00018757,2]
[378000642,1754662240585,-400.0,0.00018757,2]
[378000643,1754662240594,-619.74,0.00018757,2]
[378000644,1754662240603,-400.0,0.00018757,2]
[378000645,1754662240613,-400.0,0.00018757,2]
[378000646,1754662240622,-400.0,0.00018757,2]
[378000647,1754662240631,-400.0,0.00018757,2]
[378000648,1754662240640,-235.53156261,0.00018757,2]
[378000649,1754662240649,-400.0,0.00018757,2]
[378000650,1754662240661,-400.0,0.00018757,2]
[378000651,1754662240671,-400.0,0.00018757,2]
[378000652,1754662240680,-493.58,0.00018757,2]
[378000653,1754662240689,-456.98,0.00018757,2]
[378000654,1754662240698,-505.1,0.00018757,2]
[378000655,1754662240707,-452.33,0.00018757,2]
[378000656,1754662240716,-770.33,0.00018757,2]
[378000657,1754662240726,-400.0,0.00018757,2]
[378000658,1754662240734,-441.59,0.00018757,2]
[378000659,1754662240743,-424.55,0.00018757,2]
[378000660,1754662240752,-419.02,0.00018757,2]
[378000661,1754662240762,-521.23,0.00018757,2]
[378000662,1754662240771,-400.0,0.00018757,2]
[378000663,1754662240780,-400.0,0.00018757,2]
[378000664,1754662240789,-594.41,0.00018757,2]
[378000665,1754662240798,-400.0,0.00018757,2]
[378000666,1754662240807,-867.86,0.00018757,2]
[378000667,1754662240816,-400.0,0.00018757,2]
[378000668,1754662240825,-598.75,0.00018757,2]
[378000669,1754662240835,-488.36,0.00018757,2]
[378000670,1754662240844,-582.93,0.00018757,2]
[378000671,1754662240853,-400.0,0.00018757,2]
[378000672,1754662240862,-400.0,0.00018757,2]
[378000673,1754662240872,-317.07,0.00018757,2]
[378000674,1754662240880,-483.73008793,0.00018757,2]
[378000675,1754662240890,-516.36,0.00018757,2]
[378000676,1754662240900,-400.0,0.00018757,2]
[378000677,1754662240912,-400.0,0.00018757,2]
[378000678,1754662240921,-253.63576146,0.00018757,2]
[378000679,1754662240930,-400.0,0.00018757,2]
[378000680,1754662240939,-400.0,0.00018757,2]
[378000681,1754662240948,-400.0,0.00018757,2]
[378000682,1754662240957,-400.0,0.00018757,2]
[378000683,1754662240966,-400.0,0.00018757,2]
[378000684,1754662240975,-400.0,0.00018757,2]
[378000685,1754662240985,-539.26,0.00018757,2]
[378000686,1754662240994,-448.81,0.00018757,2]
[378000687,1754662241003,-510.55,0.00018757,2]
[378000688,1754662241013,-400.0,0.00018757,2]
[378000689,1754662241022,-400.0,0.00018757,2]
[378000690,1754662241032,-400.0,0.00018757,2]
[378000691,1754662241041,-672.13,0.00018757,2]
[378000692,1754662241051,-407.71,0.00018757,2]
[378000693,1754662241060,-627.45,0.00018757,2]
[378000694,1754662241069,-400.0,0.00018757,2]
[378000695,1754662241078,-400.0,0.00018757,2]
[378000696,1754662241090,-590.9,0.00018757,2]
[378000697,1754662241100,-409.01,0.00018757,2]
[378000698,1754662241110,-643.17,0.00018757,2]
[378000699,1754662241120,-400.0,0.00018757,2]
[378000700,1754662241349,-400.0,0.00018757,2]
[378000701,1754662241363,-400.0,0.00018757,2]
[378000702,1754662241372,-400.0,0.00018757,2]
[378000703,1754662241381,-400.0,0.00018757,2]
[378000704,1754662241390,-511.97,0.00018757,2]
[378000705,1754662241400,-44.18809568,0.00018757,2]
[378000706,1754662241856,-442.77190432,0.00018757,2]
[378000707,1754662241866,-604.8,0.00018757,2]
[378000708,1754662241875,-400.0,0.00018757,2]
[378000709,1754662241884,-400.0,0.00018757,2]
[378000710,1754662241894,-400.0,0.00018757,2]
[378000711,1754662241903,-692.01,0.00018757,2]
[378000712,1754662241916,-400.0,0.00018757,2]
[378000713,1754662241925,-400.0,0.00018757,2]
[378000714,1754662241934,-400.0,0.00018757,2]
[378000715,1754662241944,-400.0,0.00018757,2]
[378000716,1754662241953,-585.65,0.00018757,2]
[378000717,1754662241962,-400.0,0.00018757,2]
[378000718,1754662241972,-400.0,0.00018757,2]
[378000719,1754662241982,-641.58,0.00018757,2]
[378000720,1754662241991,-400.0,0.00018757,2]
[378000721,1754662242001,-513.04,0.00018757,2]
[378000722,1754662242010,-404.76,0.00018757,2]
[378000723,1754662242020,-508.49,0.00018757,2]
[378000724,1754662242030,-566.53,0.00018757,2]
[378000725,1754662242039,-400.0,0.00018757,2]
[378000726,1754662242049,-400.0,0.00018757,2]
[378000727,1754662242058,-400.0,0.00018757,2]
[378000728,1754662242068,-743.25,0.00018757,2]
[378000729,1754662242077,-400.0,0.00018757,2]
[378000730,1754662242087,-400.0,0.00018757,2]
[378000731,1754662242096,-492.73,0.00018757,2]
[378000732,1754662242109,-400.0,0.00018757,2]
[378000733,1754662242118,-400.0,0.00018757,2]
[378000734,1754662242128,-198.95110958,0.00018757,2]
[378000735,1754662242138,-400.0,0.00018757,2]
[378000736,1754662242147,-400.0,0.00018757,2]
[378000737,1754662242157,-528.43,0.00018757,2]
[378000738,1754662242168,-819.82,0.00018757,2]
[378000739,1754662242178,-374.68779705,0.00018757,2]
[378000740,1754662242188,-484.25,0.00018757,2]
[378000741,1754662242198,-261.907637,0.00018757,2]
[378000743,1754662242208,-400.0,0.00018757,2]
[378000745,1754662242218,-521.76,0.00018757,2]
[378000746,1754662242228,-755.64,0.00018757,2]
[378000747,1754662242237,-1435.33,0.00018757,2]
[378000748,1754662242247,-697.61,0.00018757,2]
[378000749,1754662242257,-597.86,0.00018757,2]
[378000750,1754662242266,-400.0,0.00018757,2]
[378000752,1754662242275,-426.39,0.00018757,2]
[378000754,1754662242285,-400.0,0.00018757,2]
[378000755,1754662242294,-308.790016,0.00018757,2]
[378000757,1754662242304,-650.67,0.00018757,2]
[378000759,1754662242313,-400.0,0.00018757,2]
[378000760,1754662242322,-458.73,0.00018757,2]
[378000761,1754662242332,-400.0,0.00018757,2]
[378000762,1754662242341,-556.54,0.00018757,2]
[378000763,1754662242351,-447.73,0.00018757,2]
[378000764,1754662242360,-400.0,0.00018757,2]
[378000765,1754662242370,-516.28,0.00018757,2]
[378000766,1754662242379,-262.949769,0.00018757,2]
[378000767,1754662242388,-400.0,0.00018757,2]
[378000768,1754662242398,-400.0,0.00018757,2]
[378000769,1754662242407,-400.0,0.00018757,2]
[378000770,1754662242419,-466.01,0.00018757,2]
[378000771,1754662242428,-400.0,0.00018757,2]
[378000772,1754662242438,-400.0,0.00018757,2]
[378000773,1754662242447,-179.368712,0.00018757,2]
[378000774,1754662242457,-542.01466217,0.00018757,2]
[378000775,1754662242466,-802.79,0.00018757,2]
[378000776,1754662242475,-587.67,0.00018757,2]
[378000777,1754662242485,-223.625604,0.00018757,2]
[378000778,1754662242498,-400.0,0.00018757,2]
[378000779,1754662242508,-400.0,0.00018757,2]
[378000780,1754662242517,-400.0,0.00018757,2]
[378000781,1754662242526,-400.0,0.00018757,2]
[378000782,1754662242536,-480.59,0.00018757,2]
[378000783,1754662242545,-400.0,0.00018757,2]
[378000784,1754662242554,-842.21,0.00018757,2]
[378000785,1754662242565,-601.97,0.00018757,2]
[378000786,1754662242575,-455.52,0.00018757,2]
[378000787,1754662242584,-400.0,0.00018757,2]
[378000788,1754662242593,-438.09,0.00018757,2]
[378000789,1754662242603,-400.0,0.00018757,2]
[378000790,1754662242612,-442.17097753,0.00018757,2]
[378000791,1754662242621,-400.0,0.00018757,2]
[378000792,1754662242630,-723.04,0.00018757,2]
[378000793,1754662242640,-400.0,0.00018757,2]
[378000794,1754662242649,-989.2574725,0.00018757,2]
[378000795,1754662242704,-42.8725275,0.00018757,2]
[378000796,1754662242715,-400.0,0.00018757,2]
[378000797,1754662242725,-707.71,0.00018757,2]
[378000798,1754662242735,-400.0,0.00018757,2]
[378000799,1754662242745,-400.0,0.00018757,2]
[378000800,1754662242755,-566.01,0.00018757,2]
[378000801,1754662242765,-490.26,0.00018757,2]
[378000802,1754662242774,-494.85,0.00018757,2]
[378000803,1754662242783,-400.0,0.00018757,2]
[378000805,1754662242793,-400.0,0.00018757,2]
[378000807,1754662242803,-483.7,0.00018757,2]
[378000808,1754662242813,-663.82,0.00018757,2]
[378000809,1754662242822,-748.13,0.00018757,2]
[378000810,1754662242831,-400.0,0.00018757,2]
[378000811,1754662242841,-273.0904376,0.00018757,2]
[378000812,1754662242850,-595.84,0.00018757,2]
[378000814,1754662242859,-553.6,0.00018757,2]
[378000815,1754662242868,-400.0,0.00018757,2]
[378000816,1754662242878,-504.95,0.00018757,2]
[378000817,1754662242887,-593.55,0.00018757,2]
[378000819,1754662242896,-400.0,0.00018757,2]
[378000821,1754662242905,-400.0,0.00018757,2]
[378000822,1754662242916,-684.33,0.00018757,2]
[378000823,1754662242925,-400.0,0.00018757,2]
[378000824,1754662242935,-456.74,0.00018757,2]
[378000825,1754662242944,-400.0,0.00018757,2]
[378000826,1754662242954,-400.0,0.00018757,2]
[378000828,1754662242963,-500.0,0.00018757,2]
[378000830,1754662242972,-400.0,0.00018757,2]
[378000832,1754662242981,-519.26,0.00018757,2]
[378000834,1754662242990,-823.03,0.00018757,2]
[378000836,1754662242999,-748.82,0.00018757,2]
[378000838,1754662243009,-400.0,0.00018757,2]
[378000840,1754662243018,-431.94,0.00018757,2]
[378000841,1754662243027,-400.0,0.00018757,2]
[378000842,1754662243036,-1000.0,0.00018757,2]
[378000843,1754662243045,-662.01,0.00018757,2]
[378000844,1754662243055,-400.0,0.00018757,2]
[378000845,1754662243065,-400.0,0.00018757,2]
[378000846,1754662243073,-681.96003497,0.00018757,2]
[378000847,1754662243164,150.83562114,0.00017967,2]
[378000848,1754662243184,49.16437886,0.00017967,2]
[378000849,1754662243290,152.0,0.00018,2]
[378000852,1754662243637,-446.61,0.00018756,2]
[378000853,1754662243647,-400.0,0.00018756,2]
[378000854,1754662243657,-83.03996503,0.00018757,2]
[378000855,1754662243668,-879.69,0.00018757,2]
[378000856,1754662243677,-488.69,0.00018757,2]
[378000857,1754662243686,-651.16,0.00018757,2]
[378000858,1754662243695,-817.46,0.00018757,2]
[378000859,1754662243704,-400.0,0.00018757,2]
[378000860,1754662243714,-665.48,0.00018757,2]
[378000861,1754662243723,-542.63,0.00018757,2]
[378000862,1754662243732,-1743.17,0.00018757,2]
[378000863,1754662243742,-400.0,0.00018757,2]
[378000864,1754662243752,-400.0,0.00018757,2]
[378000865,1754662243761,-79.66779496,0.00018757,2]
[378000866,1754662243773,-352.93220504,0.00018757,2]
[378000867,1754662243783,-438.54,0.00018757,2]
[378000868,1754662243793,-400.0,0.00018757,2]
[378000869,1754662243803,-400.0,0.00018757,2]
[378000870,1754662243812,-337.73170459,0.00018757,2]
[378000871,1754662243824,-62.26829541,0.00018757,2]
[378000872,1754662243833,-345.60857073,0.00018757,2]
[378000873,1754662243845,-54.39142927,0.00018757,2]
[378000874,1754662243856,-549.63,0.00018757,2]
[378000875,1754662243867,-396.33184224,0.00018757,2]
[378000876,1754662243885,-3.66815776,0.00018757,2]
[378000877,1754662243907,-400.0,0.00018757,2]
[378000878,1754662243933,-189.52152084,0.00018757,2]
[378000883,1754662245505,-400.0,0.00018756,2]
[378000884,1754662245515,-241.72847916,0.00018757,2]
[378000885,1754662245525,-848.82,0.00018757,2]
[378000886,1754662245535,-400.0,0.00018757,2]
[378000887,1754662245543,-400.0,0.00018757,2]
[378000888,1754662245552,-539.63,0.00018757,2]
[378000889,1754662245561,-553.25,0.00018757,2]
[378000890,1754662245571,-646.55,0.00018757,2]
[378000891,1754662245581,-502.98,0.00018757,2]
[378000892,1754662245590,-400.0,0.00018757,2]